[Event "Early-Titled-Tuesday-Blitz-September-05-2023"]
[Site "Chess.com"]
[Date "2023.09.05"]
[Round "3"]
[White "vladgoncharov"]
[Black "UB_TheQueen"]
[Result "1-0"]
[WhiteElo "2535"]
[BlackElo "2083"]
[TimeControl "180+1"]
[EndTime "8:23:58 PDT"]
[Termination "vladgoncharov won by checkmate"]

1. d4 {[%clk 0:03:00]} 1... Nf6 {[%clk 0:02:59.2]} 2. c4 {[%clk 0:02:59.3]} 2...
e6 {[%clk 0:02:59.3]} 3. Nc3 {[%clk 0:02:58.9]} 3... Bb4 {[%clk 0:02:59.1]} 4.
e3 {[%clk 0:02:59.3]} 4... O-O {[%clk 0:02:58.2]} 5. Bd3 {[%clk 0:02:58.8]} 5...
d6 {[%clk 0:02:58.4]} 6. Ne2 {[%clk 0:02:58.3]} 6... e5 {[%clk 0:02:58.3]} 7.
O-O {[%clk 0:02:57.3]} 7... Nc6 {[%clk 0:02:57.8]} 8. a3 {[%clk 0:02:53.3]} 8...
Bxc3 {[%clk 0:02:57]} 9. Nxc3 {[%clk 0:02:53.3]} 9... exd4 {[%clk 0:02:52.4]}
10. exd4 {[%clk 0:02:53]} 10... Nxd4 {[%clk 0:02:50.5]} 11. Bxh7+ {[%clk
0:02:51.9]} 11... Kxh7 {[%clk 0:02:47.3]} 12. Qxd4 {[%clk 0:02:52.3]} 12... Bf5
{[%clk 0:02:43.9]} 13. Bg5 {[%clk 0:02:47.1]} 13... Re8 {[%clk 0:02:17.9]} 14.
Rfe1 {[%clk 0:02:25.9]} 14... Re6 {[%clk 0:02:05.3]} 15. Nd5 {[%clk 0:02:19.1]}
15... c6 {[%clk 0:01:17.9]} 16. Qh4+ {[%clk 0:01:54.6]} 16... Kg6 {[%clk
0:01:11.2]} 17. Nf4# {[%clk 0:01:53]} 1-0

[Event "Early-Titled-Tuesday-Blitz-September-05-2023"]
[Site "Chess.com"]
[Date "2023.09.05"]
[Round "3"]
[White "Sanan_Sjugirov"]
[Black "DeArron_Fox"]
[Result "1-0"]
[WhiteElo "2905"]
[BlackElo "2506"]
[TimeControl "180+1"]
[EndTime "8:24:14 PDT"]
[Termination "Sanan_Sjugirov won by resignation"]

1. Nf3 {[%clk 0:03:00.9]} 1... d5 {[%clk 0:02:59.6]} 2. e3 {[%clk 0:03:01.2]}
2... Nf6 {[%clk 0:02:59.6]} 3. b3 {[%clk 0:03:01.7]} 3... e6 {[%clk 0:02:51.8]}
4. Bb2 {[%clk 0:03:01.5]} 4... Be7 {[%clk 0:02:51.7]} 5. c4 {[%clk 0:03:00.3]}
5... O-O {[%clk 0:02:51.8]} 6. Be2 {[%clk 0:02:59.8]} 6... b6 {[%clk 0:02:51.9]}
7. O-O {[%clk 0:02:59.3]} 7... Bb7 {[%clk 0:02:52.6]} 8. Nc3 {[%clk 0:02:59]}
8... c5 {[%clk 0:02:36.3]} 9. cxd5 {[%clk 0:02:58.7]} 9... exd5 {[%clk
0:02:28.3]} 10. d4 {[%clk 0:02:58.4]} 10... Nc6 {[%clk 0:02:25.6]} 11. Rc1
{[%clk 0:02:57.3]} 11... Rc8 {[%clk 0:02:25.3]} 12. dxc5 {[%clk 0:02:42]} 12...
bxc5 {[%clk 0:02:25.1]} 13. Na4 {[%clk 0:02:42.7]} 13... Ne4 {[%clk 0:02:06.1]}
14. Nd2 {[%clk 0:02:42.8]} 14... Qa5 {[%clk 0:00:59.3]} 15. Nxe4 {[%clk
0:02:38.9]} 15... dxe4 {[%clk 0:01:00.2]} 16. Bc4 {[%clk 0:02:31.4]} 16... Rfd8
{[%clk 0:00:28]} 17. Qh5 {[%clk 0:02:27.4]} 17... Bf8 {[%clk 0:00:28.6]} 18.
Qxf7+ {[%clk 0:02:27.3]} 1-0

[Event "Early-Titled-Tuesday-Blitz-September-05-2023"]
[Site "Chess.com"]
[Date "2023.09.05"]
[Round "3"]
[White "Boxerandchessplayer"]
[Black "WilsonPalencia21"]
[Result "0-1"]
[WhiteElo "2080"]
[BlackElo "2530"]
[TimeControl "180+1"]
[EndTime "8:24:19 PDT"]
[Termination "WilsonPalencia21 won by resignation"]

1. d4 {[%clk 0:03:00.9]} 1... Nf6 {[%clk 0:02:59.6]} 2. Nf3 {[%clk 0:02:59.9]}
2... c5 {[%clk 0:02:59.8]} 3. d5 {[%clk 0:02:57.3]} 3... g6 {[%clk 0:02:59.6]}
4. c4 {[%clk 0:02:56.8]} 4... Bg7 {[%clk 0:02:59.3]} 5. Nc3 {[%clk 0:02:55.9]}
5... d6 {[%clk 0:02:59.5]} 6. e4 {[%clk 0:02:53.5]} 6... e6 {[%clk 0:02:58.3]}
7. Bd3 {[%clk 0:02:49.2]} 7... exd5 {[%clk 0:02:57.6]} 8. cxd5 {[%clk
0:02:50.1]} 8... a6 {[%clk 0:02:57.2]} 9. a4 {[%clk 0:02:49.1]} 9... Bg4 {[%clk
0:02:56.9]} 10. Bf4 {[%clk 0:02:30]} 10... Nh5 {[%clk 0:02:56.3]} 11. Bg3 {[%clk
0:02:27.5]} 11... O-O {[%clk 0:02:54.4]} 12. O-O {[%clk 0:02:11.6]} 12... Re8
{[%clk 0:02:53.3]} 13. Re1 {[%clk 0:02:09.2]} 13... Nxg3 {[%clk 0:02:49.9]} 14.
hxg3 {[%clk 0:02:06.9]} 14... Nd7 {[%clk 0:02:49.8]} 15. a5 {[%clk 0:02:02.8]}
15... Rc8 {[%clk 0:02:48.3]} 16. Qb3 {[%clk 0:01:47.3]} 16... Rc7 {[%clk
0:02:24.4]} 17. Nd2 {[%clk 0:01:31.7]} 17... Bd4 {[%clk 0:02:17.9]} 18. Nc4
{[%clk 0:01:24.7]} 18... Ne5 {[%clk 0:02:11.1]} 19. Nd2 {[%clk 0:00:54.8]} 19...
Nxd3 {[%clk 0:02:06.9]} 0-1

[Event "Early-Titled-Tuesday-Blitz-September-05-2023"]
[Site "Chess.com"]
[Date "2023.09.05"]
[Round "3"]
[White "WildTricks"]
[Black "IM_Tissir"]
[Result "1-0"]
[WhiteElo "2638"]
[BlackElo "2454"]
[TimeControl "180+1"]
[EndTime "8:24:21 PDT"]
[Termination "WildTricks won by resignation"]

1. e4 {[%clk 0:03:00.9]} 1... c5 {[%clk 0:02:59.8]} 2. Nf3 {[%clk 0:03:01.2]}
2... e6 {[%clk 0:03:00.3]} 3. d4 {[%clk 0:03:01.1]} 3... cxd4 {[%clk 0:03:00.6]}
4. Nxd4 {[%clk 0:03:02]} 4... Nf6 {[%clk 0:02:59.9]} 5. Nc3 {[%clk 0:03:02.6]}
5... d6 {[%clk 0:03:00.4]} 6. g4 {[%clk 0:03:00.7]} 6... a6 {[%clk 0:03:00.8]}
7. Be3 {[%clk 0:02:58.8]} 7... b5 {[%clk 0:03:00.1]} 8. Bg2 {[%clk 0:02:51.1]}
8... Bb7 {[%clk 0:02:59.9]} 9. g5 {[%clk 0:02:50.6]} 9... b4 {[%clk 0:02:46.9]}
10. gxf6 {[%clk 0:02:28.9]} 10... bxc3 {[%clk 0:02:46.6]} 11. fxg7 {[%clk
0:02:28.5]} 11... Bxg7 {[%clk 0:02:46.4]} 12. bxc3 {[%clk 0:02:25.7]} 12... Nd7
{[%clk 0:02:27.6]} 13. Rb1 {[%clk 0:02:18.9]} 13... Qc7 {[%clk 0:02:25.6]} 14.
O-O {[%clk 0:02:09.8]} 14... O-O {[%clk 0:02:25.2]} 15. Kh1 {[%clk 0:02:06.1]}
15... Rab8 {[%clk 0:02:23.5]} 16. Ne2 {[%clk 0:01:59.2]} 16... Nf6 {[%clk
0:02:07.8]} 17. Ng3 {[%clk 0:01:58.2]} 17... d5 {[%clk 0:02:05.1]} 18. Rg1
{[%clk 0:01:40.3]} 18... dxe4 {[%clk 0:01:58.3]} 19. Bd4 {[%clk 0:01:25]} 19...
Rfd8 {[%clk 0:01:53.8]} 20. Qe2 {[%clk 0:01:19.8]} 20... e5 {[%clk 0:01:51.3]}
21. Bb6 {[%clk 0:01:18.3]} 21... Qxc3 {[%clk 0:01:45.8]} 22. Bxd8 {[%clk
0:01:17.8]} 22... Rxd8 {[%clk 0:01:45.5]} 23. Rxb7 {[%clk 0:01:16.6]} 1-0

[Event "Early-Titled-Tuesday-Blitz-September-05-2023"]
[Site "Chess.com"]
[Date "2023.09.05"]
[Round "3"]
[White "Chopper1905"]
[Black "Ramosha"]
[Result "1-0"]
[WhiteElo "2875"]
[BlackElo "2668"]
[TimeControl "180+1"]
[EndTime "8:24:36 PDT"]
[Termination "Chopper1905 won by resignation"]

1. d4 {[%clk 0:02:58]} 1... Nf6 {[%clk 0:02:59.5]} 2. c4 {[%clk 0:02:57.4]} 2...
e6 {[%clk 0:03:00.2]} 3. Nf3 {[%clk 0:02:57.1]} 3... Bb4+ {[%clk 0:03:00.9]} 4.
Bd2 {[%clk 0:02:56.4]} 4... Qe7 {[%clk 0:03:01.6]} 5. g3 {[%clk 0:02:53.1]} 5...
O-O {[%clk 0:03:02]} 6. Bg2 {[%clk 0:02:51.7]} 6... Bxd2+ {[%clk 0:03:01.7]} 7.
Nfxd2 {[%clk 0:02:45.3]} 7... Nc6 {[%clk 0:02:59.9]} 8. e3 {[%clk 0:02:40.8]}
8... d6 {[%clk 0:02:57.7]} 9. Nc3 {[%clk 0:02:38.2]} 9... e5 {[%clk 0:02:57.6]}
10. d5 {[%clk 0:02:37]} 10... Nb8 {[%clk 0:02:57.4]} 11. O-O {[%clk 0:02:36.2]}
11... a5 {[%clk 0:02:55]} 12. a3 {[%clk 0:02:36.1]} 12... Na6 {[%clk 0:02:55.1]}
13. b4 {[%clk 0:02:36.4]} 13... b6 {[%clk 0:02:55.4]} 14. Rb1 {[%clk 0:02:32.4]}
14... Bd7 {[%clk 0:02:49]} 15. Qc2 {[%clk 0:02:31.8]} 15... g6 {[%clk
0:02:45.3]} 16. Nb5 {[%clk 0:02:29.7]} 16... axb4 {[%clk 0:02:41.7]} 17. axb4
{[%clk 0:02:29.7]} 17... Rfc8 {[%clk 0:02:41.4]} 18. Nc3 {[%clk 0:02:17.7]}
18... h5 {[%clk 0:02:33.7]} 19. Qb2 {[%clk 0:02:07.5]} 19... h4 {[%clk
0:02:30.8]} 20. Ra1 {[%clk 0:02:07.3]} 20... hxg3 {[%clk 0:02:24.2]} 21. hxg3
{[%clk 0:02:08.2]} 21... Ra7 {[%clk 0:02:06.3]} 22. Nb5 {[%clk 0:02:03.6]} 22...
Raa8 {[%clk 0:02:04.2]} 23. Ra3 {[%clk 0:02:02.3]} 23... c6 {[%clk 0:01:59.6]}
24. dxc6 {[%clk 0:02:01.8]} 24... Bxc6 {[%clk 0:02:00.5]} 25. Bxc6 {[%clk
0:02:00.1]} 25... Rxc6 {[%clk 0:02:01.4]} 26. Rfa1 {[%clk 0:02:00.2]} 26... Qb7
{[%clk 0:02:01.2]} 27. Qa2 {[%clk 0:01:56.6]} 27... d5 {[%clk 0:01:22.4]} 28.
Rxa6 {[%clk 0:01:46.6]} 28... Rd8 {[%clk 0:01:17.6]} 29. Ra8 {[%clk 0:01:42.3]}
29... Qc8 {[%clk 0:01:16.3]} 30. Rxc8 {[%clk 0:01:42.1]} 1-0

[Event "Early-Titled-Tuesday-Blitz-September-05-2023"]
[Site "Chess.com"]
[Date "2023.09.05"]
[Round "3"]
[White "dosto07"]
[Black "Rsnr"]
[Result "0-1"]
[WhiteElo "2510"]
[BlackElo "2908"]
[TimeControl "180+1"]
[EndTime "8:24:36 PDT"]
[Termination "Rsnr won by resignation"]

1. e4 {[%clk 0:03:00.9]} 1... c6 {[%clk 0:02:59.1]} 2. d4 {[%clk 0:02:59.1]}
2... d5 {[%clk 0:03:00]} 3. Nc3 {[%clk 0:02:58.7]} 3... dxe4 {[%clk 0:02:59.7]}
4. Nxe4 {[%clk 0:02:59.6]} 4... Bf5 {[%clk 0:03:00.3]} 5. Ng3 {[%clk 0:02:59.8]}
5... Bg6 {[%clk 0:03:00.8]} 6. h4 {[%clk 0:03:00.5]} 6... h6 {[%clk 0:03:01.1]}
7. Nf3 {[%clk 0:03:01.1]} 7... e6 {[%clk 0:03:01.7]} 8. h5 {[%clk 0:03:01.4]}
8... Bh7 {[%clk 0:03:02.4]} 9. Bd3 {[%clk 0:03:01.9]} 9... Bxd3 {[%clk
0:03:02.9]} 10. Qxd3 {[%clk 0:03:02.6]} 10... Nf6 {[%clk 0:03:03.6]} 11. Bd2
{[%clk 0:03:03]} 11... c5 {[%clk 0:03:04]} 12. Bc3 {[%clk 0:02:52.2]} 12... Nc6
{[%clk 0:03:02.6]} 13. O-O-O {[%clk 0:02:51.5]} 13... Qd5 {[%clk 0:03:02.5]} 14.
dxc5 {[%clk 0:02:22]} 14... Qxd3 {[%clk 0:03:03.1]} 15. Rxd3 {[%clk 0:02:21.7]}
15... Bxc5 {[%clk 0:03:03.6]} 16. Bxf6 {[%clk 0:02:20.9]} 16... gxf6 {[%clk
0:03:04.1]} 17. Ne4 {[%clk 0:02:21]} 17... Be7 {[%clk 0:03:04.8]} 18. Nd6+
{[%clk 0:02:19.3]} 18... Bxd6 {[%clk 0:03:04.8]} 19. Rxd6 {[%clk 0:02:19.5]}
19... Rd8 {[%clk 0:03:04.4]} 20. Rhd1 {[%clk 0:02:15.7]} 20... Rxd6 {[%clk
0:03:04.1]} 21. Rxd6 {[%clk 0:02:16.3]} 21... Ke7 {[%clk 0:03:02.6]} 22. Rd3
{[%clk 0:02:15.8]} 22... Rg8 {[%clk 0:03:00.6]} 23. g3 {[%clk 0:02:15.4]} 23...
f5 {[%clk 0:03:00.8]} 24. a3 {[%clk 0:02:11.3]} 24... Rg4 {[%clk 0:03:00.1]} 25.
b4 {[%clk 0:02:09]} 25... a6 {[%clk 0:03:00.2]} 26. Kb2 {[%clk 0:02:03]} 26...
f4 {[%clk 0:02:58.4]} 27. Nd4 {[%clk 0:01:36.2]} 27... Ne5 {[%clk 0:02:55.1]}
28. Rc3 {[%clk 0:01:32]} 28... fxg3 {[%clk 0:02:55]} 29. f4 {[%clk 0:01:00.1]}
29... Rxf4 {[%clk 0:02:49.2]} 30. Ne2 {[%clk 0:01:00.1]} 30... g2 {[%clk
0:02:49.4]} 31. Rg3 {[%clk 0:00:51.6]} 31... Rg4 {[%clk 0:02:49.4]} 32. Rxg4
{[%clk 0:00:36.2]} 32... Nxg4 {[%clk 0:02:50.2]} 33. Kc3 {[%clk 0:00:36.4]}
33... f5 {[%clk 0:02:47.1]} 34. Kd4 {[%clk 0:00:35.9]} 34... e5+ {[%clk
0:02:44.2]} 35. Kc5 {[%clk 0:00:33.9]} 35... f4 {[%clk 0:02:43.1]} 36. Ng1
{[%clk 0:00:33.8]} 36... e4 {[%clk 0:02:41.5]} 0-1

[Event "Early-Titled-Tuesday-Blitz-September-05-2023"]
[Site "Chess.com"]
[Date "2023.09.05"]
[Round "3"]
[White "Rakitic2010"]
[Black "Kapitan_Bayan"]
[Result "1-0"]
[WhiteElo "2431"]
[BlackElo "2198"]
[TimeControl "180+1"]
[EndTime "8:24:58 PDT"]
[Termination "Rakitic2010 won on time"]

1. e4 {[%clk 0:03:00.9]} 1... c5 {[%clk 0:02:56.6]} 2. Nf3 {[%clk 0:03:00.8]}
2... d6 {[%clk 0:02:56.5]} 3. c3 {[%clk 0:03:00.5]} 3... Nf6 {[%clk 0:02:55.5]}
4. Be2 {[%clk 0:03:00.4]} 4... g6 {[%clk 0:02:52.8]} 5. O-O {[%clk 0:03:00]}
5... Bg7 {[%clk 0:02:50.5]} 6. Re1 {[%clk 0:02:59.9]} 6... O-O {[%clk
0:02:49.3]} 7. Bf1 {[%clk 0:02:59.5]} 7... e5 {[%clk 0:02:41.6]} 8. h3 {[%clk
0:02:57.5]} 8... Nc6 {[%clk 0:02:38.9]} 9. d4 {[%clk 0:02:56.7]} 9... cxd4
{[%clk 0:02:31.9]} 10. cxd4 {[%clk 0:02:57.6]} 10... exd4 {[%clk 0:02:31.9]} 11.
Nxd4 {[%clk 0:02:58.5]} 11... Nxd4 {[%clk 0:02:26.3]} 12. Qxd4 {[%clk
0:02:59.4]} 12... Be6 {[%clk 0:01:30.7]} 13. Nc3 {[%clk 0:02:58.3]} 13... Rc8
{[%clk 0:01:24]} 14. Bg5 {[%clk 0:02:56.2]} 14... h6 {[%clk 0:01:14.9]} 15. Bh4
{[%clk 0:02:54.8]} 15... g5 {[%clk 0:00:33.5]} 16. Bg3 {[%clk 0:02:54.8]} 16...
Nh5 {[%clk 0:00:24.3]} 17. Qxd6 {[%clk 0:02:54.6]} 17... Nxg3 {[%clk 0:00:24]}
18. Qxg3 {[%clk 0:02:54.6]} 18... Qb6 {[%clk 0:00:20]} 19. Rad1 {[%clk
0:02:46.1]} 19... Qxb2 {[%clk 0:00:17.7]} 20. Nd5 {[%clk 0:02:45.9]} 20... Kh8
{[%clk 0:00:06.8]} 21. a3 {[%clk 0:02:40.3]} 21... Bc3 {[%clk 0:00:04.2]} 22.
Nxc3 {[%clk 0:02:36.8]} 22... Qxc3 {[%clk 0:00:01.5]} 23. Qd6 {[%clk 0:02:36.5]}
23... Qc5 {[%clk 0:00:01.2]} 24. Qd2 {[%clk 0:02:32.4]} 24... Rcd8 {[%clk
0:00:01.5]} 25. Qb2+ {[%clk 0:02:30.5]} 25... Kg8 {[%clk 0:00:01.5]} 26. Qxb7
{[%clk 0:02:29.1]} 26... Rb8 {[%clk 0:00:01.2]} 27. Qa6 {[%clk 0:02:27.7]} 1-0

[Event "Early-Titled-Tuesday-Blitz-September-05-2023"]
[Site "Chess.com"]
[Date "2023.09.05"]
[Round "3"]
[White "Harry_Rakkel"]
[Black "Fleetw00dMac"]
[Result "1-0"]
[WhiteElo "2651"]
[BlackElo "2464"]
[TimeControl "180+1"]
[EndTime "8:25:00 PDT"]
[Termination "Harry_Rakkel won by resignation"]

1. e4 {[%clk 0:03:00.9]} 1... e5 {[%clk 0:02:59.6]} 2. Nf3 {[%clk 0:03:00]} 2...
Nc6 {[%clk 0:03:00.1]} 3. Bc4 {[%clk 0:02:59.6]} 3... Bc5 {[%clk 0:02:59.5]} 4.
O-O {[%clk 0:02:58.6]} 4... Nf6 {[%clk 0:02:59.1]} 5. d3 {[%clk 0:02:58.2]} 5...
a6 {[%clk 0:02:56.6]} 6. c3 {[%clk 0:02:52.9]} 6... Ba7 {[%clk 0:02:56.3]} 7.
Bb3 {[%clk 0:02:51.3]} 7... d6 {[%clk 0:02:46.7]} 8. Nbd2 {[%clk 0:02:48.7]}
8... O-O {[%clk 0:02:45.3]} 9. h3 {[%clk 0:02:43.9]} 9... Ne7 {[%clk 0:02:42.3]}
10. Re1 {[%clk 0:02:43.1]} 10... Ng6 {[%clk 0:02:41.3]} 11. Nf1 {[%clk
0:02:42.5]} 11... h6 {[%clk 0:02:40.5]} 12. Be3 {[%clk 0:02:37.1]} 12... Bxe3
{[%clk 0:02:38.7]} 13. Nxe3 {[%clk 0:02:36.4]} 13... Re8 {[%clk 0:02:31]} 14.
Qd2 {[%clk 0:02:16.6]} 14... Be6 {[%clk 0:02:18.5]} 15. Rad1 {[%clk 0:02:15.5]}
15... Bxb3 {[%clk 0:02:16]} 16. axb3 {[%clk 0:02:14.9]} 16... a5 {[%clk
0:02:16]} 17. Nf5 {[%clk 0:02:12]} 17... Kh7 {[%clk 0:02:00.4]} 18. g3 {[%clk
0:02:07.6]} 18... Ne7 {[%clk 0:01:50]} 19. N3h4 {[%clk 0:02:06]} 19... Nxf5
{[%clk 0:01:48.6]} 20. Nxf5 {[%clk 0:02:05.8]} 20... Ng8 {[%clk 0:01:48.7]} 21.
d4 {[%clk 0:02:02.2]} 21... g6 {[%clk 0:01:33.9]} 22. Ne3 {[%clk 0:01:54.9]}
22... Nf6 {[%clk 0:01:30.6]} 23. dxe5 {[%clk 0:01:40.5]} 23... Nxe4 {[%clk
0:01:29.2]} 24. Qd5 {[%clk 0:01:35.9]} 24... Ng5 {[%clk 0:01:28.8]} 25. h4
{[%clk 0:01:31.3]} 25... c6 {[%clk 0:01:28.6]} 26. Qh1 {[%clk 0:01:26.2]} 26...
Ne6 {[%clk 0:01:20.6]} 27. Rxd6 {[%clk 0:01:24.5]} 27... Qb6 {[%clk 0:01:20.6]}
28. h5 {[%clk 0:01:24.6]} 28... g5 {[%clk 0:01:18.9]} 29. Qe4+ {[%clk
0:01:20.9]} 29... Kg8 {[%clk 0:01:18.4]} 30. Ng4 {[%clk 0:01:18.9]} 1-0

[Event "Early-Titled-Tuesday-Blitz-September-05-2023"]
[Site "Chess.com"]
[Date "2023.09.05"]
[Round "3"]
[White "Orlov_Oleg"]
[Black "ExtremeLearner"]
[Result "1-0"]
[WhiteElo "2584"]
[BlackElo "2375"]
[TimeControl "180+1"]
[EndTime "8:25:03 PDT"]
[Termination "Orlov_Oleg won by resignation"]

1. e4 {[%clk 0:03:00.9]} 1... g6 {[%clk 0:02:59.4]} 2. d4 {[%clk 0:02:59.7]}
2... Bg7 {[%clk 0:02:58.8]} 3. Nc3 {[%clk 0:03:00.2]} 3... d5 {[%clk 0:02:57.5]}
4. exd5 {[%clk 0:02:56.8]} 4... Nf6 {[%clk 0:02:55.7]} 5. Bc4 {[%clk 0:02:52.6]}
5... O-O {[%clk 0:02:54.7]} 6. Nge2 {[%clk 0:02:49]} 6... Nbd7 {[%clk
0:02:54.8]} 7. Nf4 {[%clk 0:02:46]} 7... Nb6 {[%clk 0:02:54.8]} 8. Bb3 {[%clk
0:02:46.5]} 8... a5 {[%clk 0:02:52.9]} 9. a4 {[%clk 0:02:43]} 9... Bg4 {[%clk
0:02:42.4]} 10. f3 {[%clk 0:02:42.6]} 10... Bf5 {[%clk 0:02:27.2]} 11. h4 {[%clk
0:02:33.9]} 11... Qd6 {[%clk 0:02:18.1]} 12. Be3 {[%clk 0:02:29.3]} 12... Rfd8
{[%clk 0:02:11.4]} 13. Qe2 {[%clk 0:02:16.6]} 13... Qb4 {[%clk 0:02:02]} 14. g4
{[%clk 0:02:07.2]} 14... Bc8 {[%clk 0:01:39.3]} 15. O-O-O {[%clk 0:01:58.8]}
15... Bd7 {[%clk 0:01:30.9]} 16. g5 {[%clk 0:01:41.2]} 16... Nh5 {[%clk
0:01:12.1]} 17. Nd3 {[%clk 0:01:34.8]} 17... Qd6 {[%clk 0:01:06.2]} 18. Ne4
{[%clk 0:01:31.6]} 18... Qb4 {[%clk 0:00:50.1]} 19. Nxb4 {[%clk 0:01:30.2]} 1-0

[Event "Early-Titled-Tuesday-Blitz-September-05-2023"]
[Site "Chess.com"]
[Date "2023.09.05"]
[Round "3"]
[White "kleinebeer98"]
[Black "guillembaches"]
[Result "0-1"]
[WhiteElo "2835"]
[BlackElo "2513"]
[TimeControl "180+1"]
[EndTime "8:25:04 PDT"]
[Termination "guillembaches won by resignation"]

1. a4 {[%clk 0:03:00.9]} 1... d5 {[%clk 0:02:59.5]} 2. Ra3 {[%clk 0:03:01]} 2...
Nf6 {[%clk 0:02:58.8]} 3. Rg3 {[%clk 0:03:01.9]} 3... Bf5 {[%clk 0:02:57]} 4. b3
{[%clk 0:03:02]} 4... e6 {[%clk 0:02:54.5]} 5. Bb2 {[%clk 0:03:02.5]} 5... Ne4
{[%clk 0:02:47.2]} 6. e3 {[%clk 0:03:02.5]} 6... Nxg3 {[%clk 0:02:45.6]} 7. hxg3
{[%clk 0:03:03.4]} 7... Nd7 {[%clk 0:02:41]} 8. Nf3 {[%clk 0:03:02.1]} 8... Nf6
{[%clk 0:02:39.5]} 9. Nh4 {[%clk 0:03:01.7]} 9... Be7 {[%clk 0:02:34.6]} 10. Nc3
{[%clk 0:02:59.5]} 10... c6 {[%clk 0:02:32.5]} 11. Nxf5 {[%clk 0:02:56]} 11...
exf5 {[%clk 0:02:32.1]} 12. Bd3 {[%clk 0:02:56.9]} 12... Ne4 {[%clk 0:02:30.4]}
13. Qf3 {[%clk 0:02:55]} 13... Qd7 {[%clk 0:02:18.1]} 14. Ne2 {[%clk 0:02:54.6]}
14... f6 {[%clk 0:02:05.2]} 15. Nf4 {[%clk 0:02:50.9]} 15... O-O-O {[%clk
0:02:01.7]} 16. a5 {[%clk 0:02:50.3]} 16... Bb4 {[%clk 0:01:53.2]} 17. c3 {[%clk
0:02:37.4]} 17... Bxa5 {[%clk 0:01:50.5]} 18. Qe2 {[%clk 0:02:35.4]} 18... Bc7
{[%clk 0:01:46.5]} 19. O-O {[%clk 0:02:28.6]} 19... h5 {[%clk 0:01:46.3]} 20.
Ra1 {[%clk 0:02:26.7]} 20... Kb8 {[%clk 0:01:43.3]} 21. c4 {[%clk 0:02:10.6]}
21... Bxf4 {[%clk 0:01:32.8]} 22. gxf4 {[%clk 0:02:08.4]} 22... dxc4 {[%clk
0:01:32.7]} 23. Bxe4 {[%clk 0:02:07.8]} 23... fxe4 {[%clk 0:01:28.1]} 24. Qxc4
{[%clk 0:02:08.3]} 24... Qd5 {[%clk 0:01:16.1]} 25. Qa4 {[%clk 0:02:08.5]} 25...
a6 {[%clk 0:01:11.3]} 26. Bd4 {[%clk 0:02:05.7]} 26... h4 {[%clk 0:01:04.3]} 27.
Qb4 {[%clk 0:02:04]} 27... Qb5 {[%clk 0:01:02]} 28. Qe7 {[%clk 0:02:02]} 28...
h3 {[%clk 0:00:58.7]} 29. g3 {[%clk 0:02:00.7]} 29... h2+ {[%clk 0:00:55.9]} 30.
Kh1 {[%clk 0:02:01.3]} 30... Qe2 {[%clk 0:00:45.9]} 31. Qxe4 {[%clk 0:02:01.4]}
31... Rxd4 {[%clk 0:00:35.2]} 0-1

[Event "Early-Titled-Tuesday-Blitz-September-05-2023"]
[Site "Chess.com"]
[Date "2023.09.05"]
[Round "3"]
[White "Jmf24"]
[Black "maurovargas01"]
[Result "1-0"]
[WhiteElo "2384"]
[BlackElo "1865"]
[TimeControl "180+1"]
[EndTime "8:25:09 PDT"]
[Termination "Jmf24 won on time"]

1. Nf3 {[%clk 0:02:57.6]} 1... Nc6 {[%clk 0:01:42.6]} 2. c4 {[%clk 0:02:51.2]}
2... e5 {[%clk 0:01:39.4]} 3. Nc3 {[%clk 0:02:50.6]} 3... f5 {[%clk 0:01:34.6]}
4. g3 {[%clk 0:02:47]} 4... Nf6 {[%clk 0:01:30.1]} 5. d4 {[%clk 0:02:44.4]} 5...
e4 {[%clk 0:01:27.3]} 6. Nh4 {[%clk 0:02:40.6]} 6... g6 {[%clk 0:01:23.9]} 7. f3
{[%clk 0:02:36.5]} 7... Bb4 {[%clk 0:01:18.9]} 8. Bg2 {[%clk 0:02:33.7]} 8...
Bxc3+ {[%clk 0:01:00.6]} 9. bxc3 {[%clk 0:02:34.6]} 9... d6 {[%clk 0:00:59.3]}
10. O-O {[%clk 0:02:33.9]} 10... g5 {[%clk 0:00:58.3]} 11. Bxg5 {[%clk 0:02:33]}
11... Bd7 {[%clk 0:00:38.5]} 12. Nxf5 {[%clk 0:02:29.7]} 12... Bxf5 {[%clk
0:00:37.5]} 13. fxe4 {[%clk 0:02:30.2]} 13... Bg6 {[%clk 0:00:35.6]} 14. Bxf6
{[%clk 0:02:30.3]} 14... Qd7 {[%clk 0:00:33.1]} 15. Bxh8 {[%clk 0:02:27.2]}
15... O-O-O {[%clk 0:00:32]} 16. Bf6 {[%clk 0:02:27.2]} 16... Re8 {[%clk
0:00:31.8]} 17. Qd3 {[%clk 0:02:23.3]} 17... d5 {[%clk 0:00:20.1]} 18. cxd5
{[%clk 0:02:23.1]} 18... Ne7 {[%clk 0:00:14.9]} 19. Bxe7 {[%clk 0:02:22.7]}
19... Qxe7 {[%clk 0:00:13.4]} 20. Rab1 {[%clk 0:02:23.6]} 20... Rd8 {[%clk
0:00:13.1]} 21. Qb5 {[%clk 0:02:23]} 21... b6 {[%clk 0:00:10.3]} 22. Qc6 {[%clk
0:02:20.9]} 22... Rd6 {[%clk 0:00:07.9]} 23. Qa8+ {[%clk 0:02:20.1]} 23... Kd7
{[%clk 0:00:07.5]} 24. e5 {[%clk 0:02:19.1]} 24... Bxb1 {[%clk 0:00:02.6]} 25.
e6+ {[%clk 0:02:19.5]} 1-0

[Event "Early-Titled-Tuesday-Blitz-September-05-2023"]
[Site "Chess.com"]
[Date "2023.09.05"]
[Round "3"]
[White "marianokar"]
[Black "CFalcons8"]
[Result "1-0"]
[WhiteElo "2490"]
[BlackElo "2269"]
[TimeControl "180+1"]
[EndTime "8:25:10 PDT"]
[Termination "marianokar won by resignation"]

1. e4 {[%clk 0:02:57]} 1... e5 {[%clk 0:02:55.5]} 2. Nf3 {[%clk 0:02:56.9]} 2...
Nc6 {[%clk 0:02:55.4]} 3. d4 {[%clk 0:02:57.1]} 3... exd4 {[%clk 0:02:49.9]} 4.
Bc4 {[%clk 0:02:57.5]} 4... Nf6 {[%clk 0:02:49]} 5. e5 {[%clk 0:02:53.7]} 5...
d5 {[%clk 0:02:46.8]} 6. Bb5 {[%clk 0:02:53.4]} 6... Ne4 {[%clk 0:02:43.2]} 7.
Nxd4 {[%clk 0:02:53.4]} 7... Bd7 {[%clk 0:02:43.3]} 8. Bxc6 {[%clk 0:02:52.5]}
8... bxc6 {[%clk 0:02:44.2]} 9. O-O {[%clk 0:02:52.1]} 9... Bc5 {[%clk
0:02:41.9]} 10. Be3 {[%clk 0:02:45.6]} 10... O-O {[%clk 0:02:40.8]} 11. f3
{[%clk 0:02:44.1]} 11... Ng5 {[%clk 0:02:39.8]} 12. Nd2 {[%clk 0:02:33.7]} 12...
Ne6 {[%clk 0:02:21.1]} 13. N2b3 {[%clk 0:02:28.2]} 13... Bb6 {[%clk 0:01:56.6]}
14. Qd2 {[%clk 0:02:27.1]} 14... Qe7 {[%clk 0:00:44.1]} 15. f4 {[%clk
0:02:23.7]} 15... Nxd4 {[%clk 0:00:37.2]} 16. Nxd4 {[%clk 0:01:59.4]} 16... c5
{[%clk 0:00:33.7]} 17. Nf3 {[%clk 0:01:59.9]} 17... d4 {[%clk 0:00:27.8]} 18.
Bf2 {[%clk 0:01:59.9]} 18... Bb5 {[%clk 0:00:26.3]} 19. Rfe1 {[%clk 0:01:59]}
19... Rad8 {[%clk 0:00:24.6]} 20. a4 {[%clk 0:01:53.7]} 1-0